fUSD/lending_fUSD_20240617
["ID","MTS","AMOUNT","RATE_DAILY","PERIOD"]
[329703179,1718587840460,-150.0,0.00026685,2]
[329703180,1718587840472,-423.19,0.00026685,2]
[329703181,1718587840502,-188.82,0.0002676,2]
[329703182,1718587840519,-152.0,0.00026794,4]
[329703183,1718587840540,-931.06436833,0.00026847,2]
[329703184,1718587840552,-155.0,0.00026847,2]
[329703185,1718587840564,-1089.3224642,0.00026849,2]
[329703186,1718587840576,-1953.21258341,0.00026849,2]
[329703187,1718587840600,-300.0,0.00026881,2]
[329703188,1718587840617,-150.0,0.00027,2]
[329703189,1718587840649,-1400.0,0.00027,2]
[329703190,1718587840669,-155.0,0.00027,2]
[329703191,1718587840689,-657.0,0.000271,2]
[329703192,1718587840702,-742.39573884,0.00027123,4]
[329703194,1718587840722,-150.0,0.00027126,2]
[329703196,1718587840753,-150.0,0.00027134,2]
[329703198,1718587840769,-5000.0,0.00027136,2]
[329703200,1718587840783,-150.0,0.00027151,2]
[329703203,1718587840804,-500.0,0.00027178,2]
[329703205,1718587840841,-200.0,0.00027178,2]
[329703208,1718587840857,-150.0,0.00027187,2]
[329703210,1718587840898,-151.54009805,0.00027188,2]
[329703212,1718587840922,-1468.11913393,0.00027197,2]
[329703214,1718587840939,-2014.98329277,0.000272,2]
[329703217,1718587840969,-151.540098,0.00027218,2]
[329703221,1718587841012,-1468.11913384,0.0002722,2]
[329703223,1718587841034,-150.0,0.00027232,2]
[329703226,1718587841065,-1468.11913384,0.00027242,2]
[329703227,1718587841088,-151.540098,0.00027249,2]
[329703230,1718587841112,-150.0,0.00027253,2]
[329703233,1718587841140,-256.31392939,0.0002726,2]
[329703234,1718587841155,-2818.27,0.00027261,2]
[329703236,1718587841174,-1468.11913384,0.00027265,2]
[329703238,1718587841202,-150.0,0.00027271,2]
[329703241,1718587841218,-151.540098,0.00027279,2]
[329703242,1718587841230,-1468.11913384,0.00027287,2]
[329703245,1718587841256,-1304.0728,0.00027288,2]
[329703247,1718587841279,-500.0,0.00027288,2]
[329703248,1718587841290,-25337.0405,0.00027288,2]
[329703251,1718587841309,-14526.9864,0.00027288,2]
[329703253,1718587841320,-162.64094111,0.00027288,2]
[329703256,1718587841344,-3848.662,0.00027297,2]
[329703258,1718587841361,-2820.06400564,0.00027297,2]
[329703260,1718587841389,-772.8568982,0.00027297,2]
[329703269,1718587841500,-659.75132017,0.00027297,2]
[329703275,1718587841562,-250.31999707,0.00027297,2]
[329703615,1718587848365,-1319.901,0.00023143,2]
[329703616,1718587848391,-10114.05,0.0002501,2]
[329703617,1718587848406,-427.45,0.00025863,2]
[329703618,1718587848419,-304.23,0.00025863,2]
[329703619,1718587848430,-359.94,0.00025863,2]
[329703620,1718587848444,-396.53,0.00025863,2]
[329703621,1718587848456,-335.82,0.0002635,2]
[329703622,1718587848469,-5497.00777892,0.00027297,2]
[329703623,1718587848484,-1000.0,0.00027297,2]
[329703624,1718587848502,-154.65104223,0.00027297,2]
[329703625,1718587848513,-3053.46304863,0.00027297,2]
[329703626,1718587848525,-453.0,0.000273,11]
[329703627,1718587848539,-291.0,0.000273,2]
[329703628,1718587848556,-500.0,0.000273,2]
[329703629,1718587848568,-160.0,0.000273,2]
[329703630,1718587848590,-150.0,0.000273,2]
[329703631,1718587848602,-1014.34,0.000273,2]
[329703632,1718587848624,-318.48,0.000273,2]
[329703633,1718587848641,-150.0,0.000273,5]
[329703634,1718587848659,-151.540098,0.00027309,2]
[329703635,1718587848676,-1468.11913384,0.0002731,2]
[329703636,1718587848688,-150.0,0.00027324,2]
[329703637,1718587848701,-1468.11913384,0.00027332,2]
[329703638,1718587848715,-150.0,0.00027334,2]
[329703639,1718587848729,-151.540098,0.00027339,2]
[329703640,1718587848741,-162.64094109,0.00027344,2]
[329703641,1718587848755,-152.0,0.00027347,5]
[329703642,1718587848775,-3053.46304863,0.00027349,2]
[329703643,1718587848801,-1468.11913384,0.00027355,2]
[329703644,1718587848818,-150.0,0.00027357,2]
[329703645,1718587848830,-150.0,0.00027363,2]
[329703646,1718587848843,-150.0,0.00027367,2]
[329703647,1718587848856,-151.540098,0.0002737,2]
[329703648,1718587848878,-167.0,0.0002737,15]
[329703649,1718587848899,-167.0,0.0002737,15]
[329703650,1718587848917,-205.0,0.00027377,15]
[329703651,1718587848938,-1468.11913384,0.00027377,2]
[329703652,1718587848949,-5000.0,0.00027379,2]
[329703653,1718587848962,-167.0,0.0002738,15]
[329703654,1718587848975,-167.0,0.0002738,15]
[329703655,1718587848988,-167.0,0.0002738,15]
[329703656,1718587849010,-174.59,0.0002738,15]
[329703657,1718587849022,-194.37047607,0.00027387,2]
[329703658,1718587849035,-29143.31864867,0.00027388,2]
[329703659,1718587856842,-595.53926835,0.00027123,4]
[329703660,1718587856853,-775.19139249,0.00027297,2]
[329703661,1718587856866,-775.19139242,0.00027306,2]
[329703662,1718587856882,-84473.46312783,0.00027388,2]
[329703663,1718587856895,-4728.7509939,0.00027388,2]
[329703664,1718587856906,-7633.9131074,0.00027388,2]
[329703665,1718587856919,-17142.1325229,0.00027388,2]
[329703666,1718587856932,-21655.49860526,0.00027388,2]
[329703667,1718587856945,-5068.55999995,0.00027388,2]
[329703668,1718587857160,-496.832,0.00026025,2]
[329703669,1718587857523,-77.0990533,0.00026025,2]
[329703670,1718587857549,-191.16189019,0.00027297,2]
[329703671,1718587857577,-5138.8013702,0.00027388,2]
[329703672,1718587857593,-644.21750752,0.00027388,2]
[329704051,1718588345884,1001.09,0.00027,30]
[329704052,1718588532777,1600.92360363,0.00027,30]
[329704054,1718588658340,1000.0,0.000275,120]
[329704055,1718588664407,1000.0,0.000275,120]
[329704056,1718588671490,907.506733,0.000275,120]
[329704057,1718588701562,200.0,0.000275,120]
[329704058,1718588707974,200.0,0.000275,120]
[329704059,1718588714499,200.0,0.000275,120]
[329704060,1718588721081,203.924179,0.000275,120]
[329704061,1718588762889,202.960986,0.000275,120]
[329704076,1718589035015,-6158.8306,0.000139,2]
[329704077,1718589035027,-157.49459174,0.000139,2]
[329704078,1718589035048,-1560.97226157,0.00014,2]
[329704079,1718589035395,-36325.31162038,0.00014,2]
[329704093,1718589039629,-194393.05699205,0.00014,2]
[329704094,1718589039904,-274346.34864247,0.00014,2]
[329704095,1718589039941,-1091453.0742954,0.00014,2]
[329704289,1718589044286,-247748.2270158,0.00014,2]
[329704324,1718589044866,-669969.79977887,0.00014,2]
[329704355,1718589045357,-292.35005528,0.00014,2]
[329704382,1718589046013,-818.84263907,0.00014,2]
[329704383,1718589046032,-660.19,0.00014,2]
[329704384,1718589046054,-2084.09343301,0.00014,2]
[329704385,1718589046486,-1803.44316641,0.00014,2]
[329704388,1718589048896,-430.0,0.00014,2]
[329704389,1718589048921,-35288.48322607,0.00014,2]
[329704390,1718589048967,-253.94151929,0.00014,2]
[329704391,1718589049004,-508.451839,0.00014,2]
[329704392,1718589049346,-386.34527195,0.00014,2]
[329704393,1718589049365,-638.3,0.00014,2]
[329704394,1718589049391,-3575.3511807,0.00014,2]
[329704395,1718589049405,-1825.79,0.00014,2]
[329704396,1718589049435,-3555.70374447,0.00014,2]
[329704397,1718589049643,-2481.35961112,0.00014,2]
[329704398,1718589049682,-265.84776388,0.00014,2]
[329704399,1718589049707,-667.34675804,0.00014,2]
[329704401,1718589049938,-268596.65725437,0.00014,2]
[329704402,1718589049950,-198.535877,0.000141,2]
[329704403,1718589049962,-157.49459173,0.000142,2]
[329704404,1718589049992,-318690.76849544,0.00015,2]
[329704405,1718589050007,-343.48,0.00019386,2]
[329704406,1718589050042,-150.0,0.00019671,2]
[329704407,1718589050066,-150.5,0.00019696,15]
[329704408,1718589050077,-150.5,0.00019706,15]
[329704409,1718589050090,-150.5,0.00019716,15]
[329704410,1718589050112,-150.5,0.00019716,15]
[329704411,1718589050148,-4272.10441364,0.0002,5]
[329704412,1718589050221,-300.63512521,0.0002,2]
[329704413,1718589050239,-226.83513534,0.000201,2]
[329704414,1718589050257,-809.0,0.000205,2]
[329704415,1718589050275,-2917.0,0.000205,2]
[329704416,1718589050331,-250.0,0.00021223,2]
[329704417,1718589050378,-1500.0,0.00021312,5]
[329704418,1718589050409,-9166.39,0.00021316,2]
[329704419,1718589050430,-194.58,0.0002137,2]
[329704421,1718589050442,-250.0,0.000214,2]
[329704425,1718589050467,-196.78,0.00021407,2]
[329704427,1718589050504,-343.48,0.0002165,2]
[329704429,1718589050529,-764.94,0.00021918,2]
[329704430,1718589050540,-250.0,0.00021918,2]
[329704431,1718589050557,-279.85,0.00021918,2]
[329704432,1718589050577,-196.78,0.00022522,2]
[329704433,1718589050608,-150.0,0.00022561,2]
[329704434,1718589050633,-632.3577266,0.00022635,2]
[329704435,1718589050646,-12737.47719277,0.00023,2]
[329704436,1718589050664,-3888.65,0.000231,2]
[329704437,1718589050675,-1079.8,0.000231,2]
[329704438,1718589050689,-150.46,0.00023127,2]
[329704439,1718589050712,-152.01,0.00023132,2]
[329704440,1718589050726,-152.89,0.00023137,2]
[329704441,1718589050740,-1845.276,0.00023142,2]
[329704442,1718589050751,-185.728,0.00023142,2]
[329704443,1718589050764,-150.363,0.00023142,2]
[329704444,1718589050776,-30070.46511828,0.00023879,2]
[329704445,1718589050820,-343.48,0.00023914,2]
[329704446,1718589050836,-150.0,0.00023931,2]
[329704447,1718589050864,-486.29889695,0.00024,3]
[329704448,1718589050877,-194.58,0.0002411,2]
[329704449,1718589050908,-180.0,0.0002423,2]
[329704450,1718589050927,-212.80839678,0.00024798,2]
[329704451,1718589050941,-212.80839674,0.00024798,2]
[329704452,1718589050962,-212.80839674,0.00024798,2]
[329704453,1718589050975,-212.80839674,0.00024798,2]
[329704454,1718589050988,-212.80839674,0.00024798,2]
[329704455,1718589051001,-212.80839674,0.00024798,2]
[329704456,1718589051015,-212.80839674,0.00024798,2]
[329704457,1718589051035,-212.80839674,0.00024798,2]
[329704458,1718589051049,-156.9371712,0.00024799,2]
[329704459,1718589051082,-1278.71461203,0.00025,2]
[329704460,1718589051109,-765638.30199182,0.00025,2]
[329704461,1718589051131,-6132.54188406,0.00025,2]
[329704462,1718589051164,-3754.07542058,0.00025,2]
[329704463,1718589051209,-701.666667,0.00025,2]
[329704464,1718589051234,-854.0,0.00025,2]
[329704465,1718589051251,-13865.70204223,0.00025,2]
[329704466,1718589051276,-1175.26064,0.00025,2]
[329704467,1718589051292,-855.62630079,0.00025,2]
[329704468,1718589051314,-352.72799642,0.00025,2]
[329704469,1718589051340,-1961.43402948,0.00025,2]
[329704472,1718589051478,-858.99079704,0.00025,2]
[329704473,1718589051495,-784.50318454,0.00025,2]
[329704474,1718589051507,-578.76471007,0.00025,2]
[329704475,1718589051523,-7146.8997323,0.00025,2]
[329704476,1718589051537,-2293.52835284,0.00025,2]
[329704477,1718589051557,-1449.50463452,0.00025,2]
[329704478,1718589051570,-467.73676211,0.00025,2]
[329704479,1718589051623,-364.75150318,0.00025,2]
[329704480,1718589051645,-16873.81040717,0.00025,2]
[329704481,1718589051660,-36728.04919,0.00025,2]
[329704482,1718589051686,-1611.63040928,0.00025,2]
[329704483,1718589051704,-8071.06297075,0.00025,2]
[329704484,1718589051718,-941.45999278,0.00025,2]
[329704485,1718589051732,-26730.21504376,0.00025,2]
[329704486,1718589051749,-892.54323916,0.00025,2]
[329704504,1718589873790,250.0,0.00027,30]
[329704505,1718589880491,250.0,0.00027,30]
[329704506,1718589893308,250.0,0.00027,30]
[329704515,1718590233244,-1035.70411405,0.00013999,5]
[329704516,1718590233258,-150.0,0.00019725,2]
[329704517,1718590233271,-305.13,0.00020972,2]
[329704518,1718590233296,-1250.0,0.00021,2]
[329704519,1718590233340,-210.9327838,0.00022,2]
[329704520,1718590233361,-250.0,0.00022661,2]
[329704521,1718590233410,-1918.25930568,0.00022987,3]
[329704522,1718590233566,-81.74069432,0.00022987,3]
[329704523,1718590233578,-250.0,0.00022987,2]
[329704524,1718590233589,-1300.0,0.00023,2]
[329704525,1718590233605,-5199.50538513,0.00023,2]
[329704526,1718590233634,-5870.44058301,0.00023,2]
[329704527,1718590233845,-1667.53122463,0.00023,2]
[329704528,1718590233860,-209.29,0.0002305,2]
[329704529,1718590233873,-307.44523609,0.00023088,2]
[329704530,1718590233969,-979.38,0.00023088,2]
[329704531,1718590234262,-407.45,0.00022702,2]
[329704532,1718590234279,-1484.50350454,0.00023088,2]
[329704533,1718590239224,-20038.23125937,0.00023088,2]
[329704534,1718590239237,-150.45,0.00023132,2]
[329704535,1718590239249,-153.93,0.00023137,2]
[329704536,1718590239268,-183.47,0.0002321,2]
[329704537,1718590239290,-200.0,0.00023234,2]
[329704538,1718590239322,-305.13,0.00023236,2]
[329704539,1718590239339,-500.0,0.00023309,2]
[329704540,1718590239355,-255.47,0.00023311,2]
[329704541,1718590239386,-1500.0,0.00023392,5]
[329704542,1718590239444,-250.0,0.00023508,2]
[329704543,1718590239461,-637.45,0.00023722,2]
[329704544,1718590239474,-461.26,0.00024384,2]
[329704545,1718590239487,-342.88,0.00024384,2]
[329704546,1718590239501,-2500.0,0.000249,2]
[329704547,1718590239519,-212.80839674,0.00024905,2]
[329704548,1718590239539,-156.93717119,0.00024905,2]
[329704549,1718590239560,-880.24,0.00024995,3]
[329704550,1718590239575,-353.61526,0.00025,2]
[329704551,1718590239589,-14488.05698351,0.00025,2]
[329704552,1718590239601,-1040.79058051,0.00025004,2]
[329704553,1718590239614,-3589.0558387,0.00025005,2]
[329704554,1718590239642,-23279.09594521,0.00025005,2]
[329704560,1718590243735,-49780.43770584,0.00025005,2]
[329704561,1718590244088,-1413.90999973,0.00025005,2]
[329704562,1718590244258,-45273.81958852,0.00025005,2]
[329704563,1718590244304,-2673.35775543,0.00025005,2]
[329704564,1718590245200,-639.15234642,0.00025005,2]
[329704565,1718590245228,-2917.84012743,0.00025005,2]
[329704566,1718590245423,-6013.50674392,0.00025005,2]
[329704567,1718590245435,-90662.8763237,0.00025005,2]
[329704568,1718590245459,-9367.6608544,0.00025032,2]
[329704569,1718590245485,-180.0,0.00025401,2]
[329704570,1718590245504,-176.51597211,0.00025464,2]
[329704571,1718590245517,-305.13,0.000255,2]
[329704572,1718590245533,-407.45,0.0002554,2]
[329704573,1718590245551,-202.653998,0.00025564,2]
[329704574,1718590245564,-58910.01357,0.00025564,2]
[329704575,1718590245583,-198.79,0.00025767,2]
[329704576,1718590245607,-58910.01357,0.00025883,2]
[329704577,1718590245642,-255.47,0.00026051,2]
[329704578,1718590245678,-58910.01357,0.00026203,2]
[329704579,1718590245704,-346.61532408,0.00026281,2]
[329704580,1718590245718,-176.51597211,0.00026381,2]
[329704581,1718590245737,-152.0,0.00026407,3]
[329704582,1718590245764,-58910.01357,0.00026522,2]
[329704583,1718590245803,-194.41121435,0.00026832,2]
[329704584,1718590245820,-151.0,0.00026835,2]
[329704585,1718590245849,-58910.01357,0.00026842,2]
[329704586,1718590245872,-500.0,0.00026842,2]
[329704587,1718590245900,-500.0,0.00026842,2]
[329704588,1718590245920,-500.0,0.00026842,2]
[329704589,1718590245939,-500.0,0.00026842,2]
[329704590,1718590245967,-500.0,0.00026842,2]
[329704591,1718590246000,-500.0,0.00026842,2]
[329704593,1718590246032,-500.0,0.00026842,2]
[329704594,1718590246049,-500.0,0.00026842,2]
[329704595,1718590246081,-500.0,0.00026842,2]
[329704596,1718590246108,-500.0,0.00026842,2]
[329704597,1718590246119,-500.0,0.00026842,2]
[329704598,1718590246133,-500.0,0.00026842,2]
[329704599,1718590246147,-500.0,0.00026842,2]
[329704600,1718590246160,-500.0,0.00026842,2]
[329704601,1718590246174,-500.0,0.00026842,2]
[329704602,1718590246185,-500.0,0.00026842,2]
[329704603,1718590246201,-500.0,0.00026842,2]
[329704604,1718590246223,-500.0,0.00026842,2]
[329704605,1718590246249,-500.0,0.00026842,2]
[329704606,1718590246279,-500.0,0.00026842,2]
[329704607,1718590246321,-500.0,0.00026842,2]
[329704608,1718590246350,-500.0,0.00026842,2]
[329704609,1718590246365,-500.0,0.00026842,2]
[329704610,1718590246381,-500.0,0.00026842,2]
[329704611,1718590246393,-500.0,0.00026842,2]
[329704612,1718590246408,-500.0,0.00026842,2]
[329704613,1718590246419,-500.0,0.00026842,2]
[329704614,1718590246436,-500.0,0.00026842,2]
[329704615,1718590246447,-500.0,0.00026842,2]
[329704616,1718590246458,-500.0,0.00026842,2]
[329704617,1718590246469,-25480.03428657,0.0002688,2]
[329704618,1718590246480,-1088.03710432,0.00026931,2]
[329704619,1718590246490,-9574.15278986,0.00026934,2]
[329704620,1718590246503,-9574.15278986,0.00026935,2]
[329704621,1718590246515,-168.00323244,0.00026936,2]
[329704622,1718590246527,-56604.78127291,0.00026937,2]
[329704623,1718590246906,-2323.32329666,0.00026937,2]
[329704626,1718590247898,-66964.84071527,0.00026937,2]
[329704627,1718590247909,-1088.03710432,0.00026939,2]
[329704628,1718590247920,-1088.03710432,0.00026941,2]
[329704629,1718590247938,-168.00323244,0.00026943,2]
[329704630,1718590247950,-168.00323244,0.00026945,2]
[329704631,1718590247962,-168.00323244,0.00026947,2]
[329704632,1718590247978,-125892.94528484,0.0002695,2]
[329704633,1718590247994,-1088.03710432,0.0002695,2]
[329704634,1718590248020,-65692.90570135,0.00026953,2]
[329704635,1718590248034,-15752.14051684,0.00026953,2]
[329704636,1718590248163,-4254.11158289,0.00026953,2]
[329704637,1718590248178,-645.41047729,0.00026953,2]
[329704638,1718590249032,-1011.6724071,0.00026953,2]
[329704639,1718590249292,-38536.70459937,0.00026953,2]
[329704640,1718590249353,-240.51411287,0.00026953,2]
[329704641,1718590249374,-9574.15278986,0.00026956,2]
[329704642,1718590249385,-4533.763917,0.00026956,2]
[329704656,1718591434474,-326.58122676,0.0002,2]
[329704657,1718591434484,-1250.0,0.00021,2]
[329704658,1718591434495,-954.16725678,0.000219,2]
[329704659,1718591434508,-318.66,0.00022576,2]
[329704660,1718591434519,-155.0,0.000227,2]
[329704661,1718591434531,-1939.429969,0.00022999,2]
[329704662,1718591435780,-890.380031,0.00022999,2]
[329704663,1718591435791,-1300.0,0.00023,2]
[329704664,1718591435818,-12737.47719277,0.00023,2]
[329704665,1718591435829,-155.0,0.00023755,2]
[329704666,1718591435840,-363.94,0.000241,2]
[329704667,1718591435860,-170.14,0.00024384,2]
[329704668,1718591435871,-2059.87583728,0.00024487,2]
[329704669,1718591435882,-466.02,0.00024488,2]
[329704670,1718591435912,-202.05,0.00024599,2]
[329704671,1718591436159,-250.0,0.00024738,2]
[329704672,1718591436178,-1500.0,0.00024738,5]
[329704673,1718591436204,-318.66,0.0002484,2]
[329704674,1718591436216,-2500.0,0.000249,2]
[329704675,1718591436227,-6807.09530734,0.000249,2]
[329704676,1718591436245,-973.38,0.00024928,2]
[329704677,1718591436261,-835.80229853,0.00025,2]
[329704678,1718591436274,-14488.05698351,0.00025,2]
[329704679,1718591436293,-10035.88458935,0.00025,2]
[329704680,1718591436325,-1350.0,0.00025,2]
[329704681,1718591436338,-159.31196262,0.00025,2]
[329704682,1718591436350,-326.46650674,0.00025,2]
[329704683,1718591436377,-155.0,0.00025,2]
[329704684,1718591436412,-1278.71461203,0.00025028,2]
[329704685,1718591436425,-707.49477052,0.00025028,2]
[329704686,1718591436438,-225.51466571,0.00025029,2]
[329704687,1718591436453,-638.13,0.0002503,2]
[329704688,1718591436524,-1000.0,0.00025205,2]
[329704689,1718591436537,-250.0,0.00025367,2]
[329704690,1718591436548,-300.0,0.0002574,2]
[329704691,1718591436558,-150.99,0.00025779,2]
[329704692,1718591436593,-189.47,0.00025963,2]
[329704693,1718591436604,-168.33,0.00026023,2]
[329704694,1718591436618,-245.69,0.00026044,2]
[329704695,1718591436633,-233.2,0.00026183,2]
[329704696,1718591436655,-1000.0,0.0002659,2]
[329704697,1718591436667,-212.80839674,0.00026652,2]
[329704698,1718591436678,-178.46364031,0.00026652,2]
[329704699,1718591436692,-188.59530406,0.00026654,2]
[329704700,1718591436703,-7500.0,0.00026671,2]
[329704701,1718591436717,-1007.90271949,0.00026747,2]
[329704702,1718591436728,-1097.60426333,0.00026748,10]
[329704703,1718591436743,-7445.75456352,0.00026748,2]
[329704704,1718591436762,-500.0,0.00026748,2]
[329704705,1718591436773,-500.0,0.00026748,2]
[329704706,1718591436789,-500.0,0.00026748,2]
[329704707,1718591436806,-500.0,0.00026748,2]
[329704708,1718591436830,-307.24078838,0.00026748,2]
[329704709,1718591436843,-500.0,0.00026748,2]
[329704710,1718591436881,-636.00208144,0.00026748,2]
[329704711,1718591436896,-500.0,0.00026748,2]
[329704712,1718591436918,-500.0,0.00026748,2]
[329704713,1718591436945,-418.55369731,0.00026748,2]
[329704714,1718591436956,-485.248323,0.00026748,2]
[329704715,1718591436981,-500.0,0.00026748,2]
[329704716,1718591437009,-500.0,0.00026748,2]
[329704717,1718591437020,-500.0,0.00026748,2]
[329704718,1718591437031,-500.0,0.00026748,2]
[329704719,1718591437042,-500.0,0.00026748,2]
[329704720,1718591437057,-500.0,0.00026748,2]
[329704721,1718591437074,-500.0,0.00026748,2]
[329704722,1718591437100,-500.0,0.00026748,2]
[329704723,1718591437113,-500.0,0.00026748,2]
[329704724,1718591437135,-500.0,0.00026748,2]
[329704725,1718591437148,-500.0,0.00026748,2]
[329704726,1718591437190,-500.0,0.00026748,2]
[329704727,1718591437220,-500.0,0.00026748,2]
[329704728,1718591437232,-500.0,0.00026748,2]
[329704729,1718591437245,-500.0,0.00026748,2]
[329704730,1718591437256,-500.0,0.00026748,2]
[329704731,1718591437273,-500.0,0.00026748,2]
[329704732,1718591437285,-500.0,0.00026748,2]
[329704733,1718591437325,-500.0,0.00026748,2]
[329704734,1718591437338,-500.0,0.00026748,2]
[329704735,1718591437361,-500.0,0.00026748,2]
[329704736,1718591437379,-500.0,0.00026748,2]
[329704737,1718591437404,-500.0,0.00026748,2]
[329704738,1718591437425,-500.0,0.00026748,2]
[329704739,1718591437439,-500.0,0.00026748,2]
[329704740,1718591437451,-500.0,0.00026748,2]
[329704741,1718591437461,-500.0,0.00026748,2]
[329704742,1718591437477,-500.0,0.00026748,2]
[329704743,1718591437497,-500.0,0.00026748,2]
[329704744,1718591437509,-500.0,0.00026748,2]
[329704745,1718591437520,-500.0,0.00026748,2]
[329704746,1718591437532,-500.0,0.00026748,2]
[329704747,1718591437549,-500.0,0.00026748,2]
[329704748,1718591437560,-500.0,0.00026748,2]
[329704749,1718591437571,-500.0,0.00026748,2]
[329704750,1718591437582,-500.0,0.00026748,2]
[329704751,1718591437593,-598.57639202,0.00026748,2]
[329704752,1718591437605,-500.0,0.00026748,2]
[329704753,1718591437615,-500.0,0.00026748,2]
[329704754,1718591437626,-430.83017799,0.00026748,2]
[329704755,1718591437638,-500.0,0.00026748,2]
[329704756,1718591437657,-500.0,0.00026748,2]
[329704757,1718591437684,-500.0,0.00026748,2]
[329704758,1718591437696,-500.0,0.00026748,2]
[329704759,1718591437710,-500.0,0.00026748,2]
[329704760,1718591437738,-500.0,0.00026748,2]
[329704761,1718591437763,-500.0,0.00026748,2]
[329704762,1718591437796,-500.0,0.00026748,2]
[329704763,1718591437815,-500.0,0.00026748,2]
[329704764,1718591437831,-500.0,0.00026748,2]
[329704765,1718591437843,-500.0,0.00026748,2]
[329704766,1718591437855,-500.0,0.00026748,2]
[329704767,1718591437871,-500.0,0.00026748,2]
[329704768,1718591437882,-500.0,0.00026748,2]
[329704769,1718591437894,-500.0,0.00026748,2]
[329704770,1718591437909,-500.0,0.00026748,2]
[329704771,1718591437920,-500.0,0.00026748,2]
[329704772,1718591437931,-500.0,0.00026748,2]
[329704773,1718591437942,-500.0,0.00026748,2]
[329704774,1718591437954,-500.0,0.00026748,2]
[329704775,1718591437992,-150.0,0.00026748,2]
[329704776,1718591438011,-500.0,0.00026748,2]
[329704777,1718591438025,-500.0,0.00026748,2]
[329704778,1718591438043,-500.0,0.00026748,2]
[329704779,1718591438067,-500.0,0.00026748,2]
[329704780,1718591438097,-500.0,0.00026748,2]
[329704781,1718591438113,-500.0,0.00026748,2]
[329704782,1718591438127,-500.0,0.00026748,2]
[329704783,1718591438138,-500.0,0.00026748,2]
[329704784,1718591438171,-500.0,0.00026748,2]
[329704785,1718591438205,-500.0,0.00026748,2]
[329704786,1718591438232,-500.0,0.00026748,2]
[329704787,1718591438246,-500.0,0.00026748,2]
[329704788,1718591438257,-500.0,0.00026748,2]
[329704789,1718591438276,-500.0,0.00026748,2]
[329704790,1718591438317,-500.0,0.00026748,2]
[329704791,1718591438370,-500.0,0.00026748,2]
[329704792,1718591438384,-315.0,0.00026748,2]
[329704793,1718591438399,-164.96901481,0.00026748,2]
[329704794,1718591438425,-101721.49979015,0.00026749,2]
[329704795,1718591438440,-519.74496214,0.00026752,2]
[329704796,1718591438466,-400.54466039,0.00026754,2]
[329704800,1718591440772,-280.65263567,0.00020999,2]
[329704801,1718591441701,-45.92859109,0.00020999,2]
[329704802,1718591441728,-250.0,0.00024474,2]
[329704803,1718591441743,-18283.73109374,0.00026754,2]
[329704823,1718591444778,-2322.91000614,0.00026754,2]
[329704834,1718591445578,-526.10173843,0.00026754,2]
[329704835,1718591445595,-80188.21229145,0.00026754,2]
[329704836,1718591445607,-7445.75456352,0.00026754,2]
[329704837,1718591445642,-61306.96771993,0.00026757,2]
[329704838,1718591445661,-40414.53207022,0.00026757,2]
[329704839,1718591445702,-101721.49979015,0.00026762,2]
[329704840,1718591445729,-7445.75456352,0.00026765,2]
[329704841,1718591445746,-809.49960562,0.0002677,2]
[329704842,1718591445773,-101721.49979015,0.00026771,2]
[329704843,1718591445787,-519.74496214,0.00026772,2]
[329704844,1718591445799,-519.74496214,0.00026777,2]
[329704845,1718591445820,-809.49960562,0.00026786,2]
[329704846,1718591445835,-809.49960562,0.00026786,2]